bitfinex/quotes_SOLUSD_20230904
["timestamp","ask_amount","ask_price","bid_price","bid_amount"]
[1693801060381,95.718,19.809,19.8,56.0]
[1693801060987,95.718,19.809,19.774,105.91432454]
[1693801060988,3.94461036,19.809,19.791,1.0]
[1693801061180,3.94461036,19.809,19.789,1.0]
[1693801061181,23.94461036,19.809,19.789,1.0]
[1693801061381,23.94461036,19.809,19.789,21.0]
[1693801061784,3.94461036,19.807,19.789,21.0]
[1693801061986,3.94461036,19.807,19.789,1.0]
[1693801062191,3.94461036,19.807,19.789,26.52]
[1693801062391,3.94461036,19.807,19.791,1.0]
[1693801064480,25.52,19.8,19.791,1.0]
[1693801064685,91.1516,19.799,19.789,1.0]
[1693801065196,91.1516,19.799,19.784,1.0]
[1693801065901,91.1516,19.799,19.784,56.0]
[1693801066098,91.1516,19.799,19.785,20.0]
[1693801066392,91.1516,19.799,19.786,56.0]
[1693801066597,91.1516,19.799,19.788,1.0]
[1693801066801,91.1516,19.799,19.788,56.0]
[1693801067189,91.1516,19.799,19.79,1.0]
[1693801067385,91.1516,19.799,19.79,56.0]
[1693801073904,91.1516,19.799,19.79,1.0]
[1693801074307,91.1516,19.799,19.785,1.0]
[1693801075189,91.1516,19.799,19.785,56.0]
[1693801075385,91.1516,19.799,19.787,1.0]
[1693801075602,91.1516,19.799,19.787,56.0]
[1693801075904,91.1516,19.799,19.789,1.0]
[1693801076105,91.1516,19.799,19.789,56.0]
[1693801091812,25.52,19.8,19.789,81.28263349]
[1693801092109,15.32121211,19.807,19.791,1.0]
[1693801092308,3.94461036,19.805,19.791,81.28263349]
[1693801092505,3.94461036,19.805,19.792,55.0]
[1693801092711,3.94461036,19.805,19.793,1.0]
[1693801092913,23.94461036,19.809,19.793,1.0]
[1693801093610,3.94461036,19.807,19.793,1.0]
[1693801094006,3.94461036,19.807,19.793,26.28263349]
[1693801094209,90.912,19.808,19.795,1.0]
[1693801094409,90.912,19.808,19.795,56.0]
[1693801094816,90.912,19.808,19.796,20.0]
[1693801095113,90.912,19.808,19.797,56.0]
[1693801095312,90.912,19.808,19.798,20.0]
[1693801095615,90.912,19.808,19.799,56.0]
[1693801096407,25.52,19.81,19.799,56.0]
[1693801096821,2.03739509,19.809,19.799,56.0]
[1693801103115,25.52,19.81,19.799,56.0]
[1693801107627,1.47834366,19.809,19.799,56.0]
[1693801107815,25.52,19.81,19.799,56.0]
[1693801111427,25.52,19.82,19.799,56.0]
[1693801111725,23.94461036,19.819,19.801,1.0]
[1693801111909,3.94461036,19.819,19.801,81.28263349]
[1693801112111,3.94461036,19.819,19.803,1.0]
[1693801112310,25.52,19.82,19.803,56.0]
[1693801112617,3.94461036,19.819,19.803,56.0]
[1693801112930,3.94461036,19.819,19.804,101.93014196]
[1693801113125,3.94461036,19.829,19.805,56.0]
[1693801113325,23.94461036,19.829,19.806,45.28263349]
[1693801113630,23.94461036,19.829,19.807,56.0]
[1693801113832,23.94461036,19.829,19.808,20.0]
[1693801114023,23.94461036,19.829,19.809,56.0]
[1693801118426,23.94461036,19.829,19.81,25.52]
[1693801118627,23.94461036,19.829,19.811,56.0]
[1693801137565,3.94461036,19.829,19.811,56.0]
[1693801137766,23.94461036,19.829,19.811,56.0]
[1693801141165,23.94461036,19.829,19.811,1.0]
[1693801141363,25.52,19.82,19.811,1.0]
[1693801141676,25.52,19.82,19.809,1.0]
[1693801141881,3.94461036,19.819,19.805,1.0]
[1693801143473,95.6043,19.819,19.805,56.0]
[1693801143879,95.6043,19.819,19.806,20.0]
[1693801144169,95.6043,19.819,19.807,56.0]
[1693801144369,95.6043,19.819,19.809,1.0]
[1693801144555,25.52,19.82,19.809,1.0]
[1693801144753,2.9888886,19.819,19.809,1.0]
[1693801144972,2.9888886,19.819,19.805,1.0]
[1693801145563,25.52,19.82,19.805,1.0]
[1693801145763,25.52,19.82,19.805,56.0]
[1693801146076,25.52,19.82,19.807,1.0]
[1693801146278,20.0,19.819,19.807,1.0]
[1693801146572,20.0,19.819,19.802,1.0]
[1693801146573,7.872,19.817,19.802,1.0]
[1693801146765,25.52,19.81,19.795,1.0]
[1693801147363,25.52,19.81,19.796,20.19953]
[1693801147665,25.52,19.81,19.802,1.0]
[1693801148072,25.52,19.81,19.802,55.0]
[1693801148268,25.52,19.81,19.803,1.0]
[1693801148668,25.52,19.81,19.802,55.0]
[1693801153466,25.52,19.81,19.796,20.19953]
[1693801153780,25.52,19.81,19.793,71.99902361]
[1693801153781,3.94461036,19.809,19.798,1.0]
[1693801153978,25.52,19.81,19.798,56.0]
[1693801154472,25.52,19.81,19.799,20.0]
[1693801154779,25.52,19.81,19.8,56.0]
[1693801162088,25.52,19.81,19.8,1.0]
[1693801162282,3.94461036,19.809,19.8,1.0]
[1693801162479,3.94461036,19.809,19.796,1.0]
[1693801162676,3.94461036,19.809,19.796,56.0]
[1693801162878,3.94461036,19.809,19.797,75.0]
[1693801163079,25.52,19.81,19.798,1.0]
[1693801163576,3.94461036,19.809,19.798,56.0]
[1693801163776,25.52,19.81,19.8,1.0]
[1693801163987,25.52,19.81,19.8,56.0]
[1693801164285,3.94461036,19.809,19.8,56.0]
[1693801164478,3.94461036,19.809,19.8,55.0]
[1693801164677,3.94461036,19.809,19.801,0.60251946]
[1693801165278,3.94461036,19.809,19.8,55.0]
[1693801169296,3.94461036,19.809,19.786,7.8229]
[1693801169594,23.94461036,19.809,19.789,1.0]
[1693801169892,23.94461036,19.809,19.789,46.28263349]
[1693801170479,23.94461036,19.809,19.789,102.93014249]
[1693801170677,23.94461036,19.809,19.79,55.0]
[1693801170877,23.94461036,19.809,19.791,1.0]
[1693801171978,23.94461036,19.809,19.79,1.0]
[1693801172390,23.94461036,19.809,19.79,51.80263349]
[1693801172582,23.94461036,19.809,19.791,25.28263349]
[1693801172783,23.94461036,19.809,19.792,1.0]
[1693801173088,23.94461036,19.809,19.792,56.0]
[1693801174775,3.94461036,19.809,19.792,56.0]
[1693801174984,23.94461036,19.809,19.792,56.0]
[1693801175583,23.94461036,19.809,19.792,1.0]
[1693801176897,23.94461036,19.809,19.792,56.0]
[1693801178800,23.94461036,19.809,19.792,81.28263349]
[1693801183401,23.94461036,19.809,19.792,56.0]
[1693801183605,3.94461036,19.809,19.794,1.0]
[1693801183810,25.52,19.81,19.795,25.28263349]
[1693801184008,25.52,19.81,19.797,1.0]
[1693801184192,25.52,19.81,19.797,26.28263349]
[1693801184390,25.52,19.81,19.799,1.0]
[1693801191496,55.61363635,19.815,19.799,1.0]
[1693801191697,2.62881166,19.814,19.799,1.0]
[1693801192508,25.52,19.81,19.799,1.0]
[1693801192902,25.52,19.81,19.797,20.0]
[1693801192903,25.52,19.81,19.798,1.0]
[1693801193111,25.52,19.81,19.794,1.0]
[1693801193411,25.52,19.81,19.794,26.28263349]
[1693801193612,25.52,19.81,19.795,20.0]
[1693801193811,25.52,19.81,19.796,56.0]
[1693801194009,25.52,19.81,19.797,20.0]
[1693801194202,25.52,19.81,19.798,56.0]
[1693801194409,25.52,19.81,19.799,20.0]
[1693801194718,25.52,19.81,19.8,56.0]
[1693801196217,25.52,19.81,19.8,1.0]
[1693801196399,3.40895986,19.808,19.793,1.0]
[1693801197613,3.40895986,19.808,19.793,56.0]
[1693801200617,3.40895986,19.808,19.794,25.28263349]
[1693801200814,93.7845,19.809,19.796,1.0]
[1693801201317,25.52,19.81,19.796,1.0]
[1693801202617,2.37360311,19.809,19.796,1.0]
[1693801203417,25.52,19.81,19.796,1.0]
[1693801205320,40.88212121,19.81,19.796,1.0]
[1693801206908,1.7365768,19.809,19.796,1.0]
[1693801214722,40.88212121,19.81,19.796,1.0]
[1693801216314,21.71478282,19.809,19.796,1.0]
[1693801216514,21.71478282,19.809,19.793,1.0]
[1693801216911,21.71478282,19.809,19.791,1.0]
[1693801217524,21.71478282,19.809,19.791,56.0]
[1693801218012,21.71478282,19.809,19.791,81.28263349]
[1693801225124,1.71478282,19.809,19.791,81.28263349]
[1693801225325,21.71478282,19.809,19.792,25.28263349]
[1693801225526,21.71478282,19.809,19.794,1.0]
[1693801229217,63.0077121,19.809,19.794,1.0]
[1693801288874,70.8827121,19.809,19.794,1.0]
[1693801289061,63.0077121,19.809,19.794,1.0]
[1693801290767,21.71478282,19.809,19.794,1.0]
[1693801290975,21.71478282,19.809,19.794,26.28263349]
[1693801291177,21.71478282,19.809,19.795,25.28263349]
[1693801291371,21.71478282,19.809,19.796,56.0]
[1693801301070,1.71478282,19.809,19.796,56.0]
[1693801301269,1.71478282,19.809,19.797,20.0]
[1693801301469,1.71478282,19.809,19.798,56.0]
[1693801301665,1.71478282,19.809,19.799,20.0]
[1693801301869,25.52,19.81,19.8,56.0]
[1693801304182,1.63818144,19.809,19.8,56.0]
[1693801309294,3.90964664,19.812,19.8,56.0]
[1693801309693,3.94461036,19.813,19.8,56.0]
[1693801320099,3.94461036,19.814,19.8,56.0]
[1693801321807,3.94461036,19.818,19.8,56.0]
[1693801332618,25.52,19.81,19.8,1.0]
[1693801332805,25.52,19.81,19.795,21.0]
[1693801332806,3.94461036,19.809,19.795,21.0]
[1693801333305,25.52,19.81,19.795,1.0]
[1693801333504,25.52,19.81,19.793,1.0]
[1693801335303,25.52,19.81,19.793,26.282633]
[1693801335503,25.52,19.81,19.794,20.0]
[1693801335799,25.52,19.81,19.795,1.0]
[1693801336018,3.94461036,19.816,19.795,1.0]
[1693801336322,3.94461036,19.818,19.797,1.0]
[1693801336504,3.94461036,19.818,19.797,46.28263349]
[1693801336823,3.94461036,19.818,19.797,102.93014196]
[1693801338620,3.94461036,19.818,19.8,25.52]
[1693801338926,3.94461036,19.818,19.801,1.0]
[1693801339403,95.98921036,19.818,19.801,1.0]
[1693801345105,3.94461036,19.818,19.801,1.0]
[1693801345305,3.94461036,19.819,19.801,37.96513349]
[1693801345511,3.94461036,19.819,19.802,98.9759913]
[1693801345826,3.94461036,19.821,19.803,1.0]
[1693801346027,3.94461036,19.821,19.804,85.54125307]
[1693801346209,3.94461036,19.821,19.806,1.0]
[1693801347822,3.94461036,19.829,19.811,1.0]
[1693801348020,25.52,19.83,19.812,25.28263349]
[1693801348420,25.52,19.83,19.813,21.0]
[1693801348815,25.52,19.83,19.813,46.52]
[1693801349016,3.94461036,19.829,19.813,46.52]
[1693801349909,3.94461036,19.829,19.814,55.0]
[1693801350118,3.94461036,19.829,19.816,1.0]
[1693801350328,3.94461036,19.829,19.816,56.0]
[1693801350521,3.94461036,19.829,19.818,1.0]
[1693801350725,3.94461036,19.829,19.818,56.0]
[1693801350922,3.94461036,19.829,19.82,1.0]
[1693801351226,3.94461036,19.829,19.82,55.0]
[1693801355432,3.94461036,19.829,19.821,0.56020207]
[1693801357131,3.94461036,19.829,19.82,55.0]
[1693801357931,3.94461036,19.829,19.821,0.61424049]
[1693801358134,25.52,19.83,19.821,0.61424049]
[1693801359223,3.94461036,19.829,19.821,0.61424049]
[1693801360021,25.52,19.83,19.821,0.61424049]
[1693801365337,3.94461036,19.829,19.82,55.0]
[1693801365521,3.94461036,19.829,19.821,0.74393365]
[1693801366841,3.94461036,19.833,19.821,0.74393365]
[1693801388352,3.94461036,19.833,19.821,46.02656714]
[1693801388649,3.94461036,19.838,19.822,66.67012]
[1693801388857,3.94461036,19.838,19.823,21.0]
[1693801389038,3.94461036,19.838,19.824,55.0]
[1693801389240,3.94461036,19.838,19.825,21.0]
[1693801389437,3.94461036,19.838,19.826,55.0]
[1693801389638,3.94461036,19.838,19.827,21.0]
[1693801389849,25.52,19.84,19.828,55.0]
[1693801390050,25.52,19.84,19.829,1.0]
[1693801390051,3.94461036,19.839,19.829,1.0]
[1693801390250,23.94461036,19.839,19.82,25.52]
[1693801390550,23.94461036,19.839,19.82,1.0]
[1693801390855,3.94461036,19.837,19.82,26.52]
[1693801391057,3.94461036,19.837,19.821,102.05884749]
[1693801391356,3.94461036,19.837,19.822,32.67012]
[1693801391535,92.592,19.838,19.823,90.38813749]
[1693801391734,92.592,19.838,19.825,1.0]
[1693801392150,92.592,19.838,19.825,56.0]
[1693801392352,92.592,19.838,19.827,1.0]
[1693801392547,92.592,19.838,19.827,56.0]
[1693801392747,92.592,19.838,19.829,1.0]
[1693801392957,92.592,19.838,19.829,56.0]
[1693801393648,3.94461036,19.844,19.829,56.0]
[1693801395857,3.94461036,19.844,19.829,55.0]
[1693801398142,3.94461036,19.844,19.83,0.53825514]
[1693801398357,3.94461036,19.844,19.829,55.0]
[1693801400059,3.94461036,19.849,19.83,1.0]
[1693801400457,23.94461036,19.849,19.829,55.0]
[1693801402564,23.94461036,19.849,19.83,0.55863657]
[1693801403156,23.94461036,19.849,19.829,55.0]
[1693801403547,25.52,19.84,19.829,55.0]
[1693801403856,3.94461036,19.839,19.829,55.0]
[1693801404248,3.94461036,19.839,19.828,55.0]
[1693801404439,3.94461036,19.839,19.829,20.0]
[1693801404644,25.52,19.84,19.83,55.0]
[1693801404857,25.52,19.84,19.827,56.0]
[1693801405059,23.94461036,19.839,19.823,11.66954]
[1693801405245,23.94461036,19.839,19.824,1.0]
[1693801405450,99.5112,19.838,19.824,1.0]
[1693801405650,3.94461036,19.837,19.823,11.66954]
[1693801406163,3.94461036,19.837,19.82,25.52]
[1693801406164,3.94461036,19.837,19.821,1.0]
[1693801406341,3.94461036,19.837,19.821,56.0]
[1693801409062,3.94461036,19.837,19.821,55.0]
[1693801409263,3.94461036,19.837,19.822,1.0]
[1693801412961,25.52,19.83,19.818,21.0]
[1693801413461,25.52,19.83,19.819,20.0]
[1693801413657,25.52,19.83,19.817,1.0]
[1693801414056,25.52,19.83,19.819,1.0]
[1693801414254,25.52,19.83,19.819,56.0]
[1693801421267,25.52,19.83,19.819,1.0]
[1693801421451,25.52,19.83,19.819,21.0]
[1693801421958,25.52,19.83,19.819,1.0]
[1693801422162,25.52,19.83,19.816,1.0]
[1693801422765,25.52,19.83,19.816,56.0]
[1693801423159,25.52,19.83,19.817,20.0]
[1693801423361,25.52,19.83,19.818,56.0]
[1693801423759,25.52,19.83,19.819,20.0]
[1693801424063,25.52,19.83,19.82,56.0]
[1693801428772,25.52,19.83,19.82,1.0]
[1693801429263,25.52,19.83,19.816,1.0]
[1693801429468,25.52,19.83,19.816,56.0]
[1693801429668,25.52,19.83,19.818,1.0]
[1693801429877,25.52,19.83,19.818,56.0]
[1693801430255,25.52,19.83,19.82,1.0]
[1693801430559,24.447,19.83,19.82,1.0]
[1693801440192,98.95771036,19.829,19.814,1.0]
[1693801440364,98.95771036,19.829,19.801,1.0]
[1693801440673,3.94461036,19.829,19.801,1.0]
[1693801440873,23.94461036,19.829,19.801,1.0]
[1693801441079,95.0131,19.828,19.802,78.83367605]
[1693801441276,3.94461036,19.827,19.803,1.0]
[1693801441478,3.94461036,19.827,19.804,25.28263349]
[1693801441775,98.95771036,19.828,19.805,21.0]
[1693801442094,98.95771036,19.828,19.806,25.28263349]
[1693801442273,98.95771036,19.828,19.807,21.0]
[1693801442472,98.95771036,19.828,19.808,25.28263349]
[1693801442779,98.95771036,19.828,19.809,21.0]
[1693801443284,98.95771036,19.828,19.809,77.96159349]
[1693801444583,3.94461036,19.828,19.809,77.96159349]
[1693801457580,3.94461036,19.828,19.81,25.52]
[1693801457780,3.94461036,19.828,19.811,1.0]
[1693801457999,3.94461036,19.828,19.812,25.28263349]
[1693801458202,3.94461036,19.828,19.813,1.0]
[1693801459289,3.94461036,19.829,19.813,26.28263349]
[1693801459595,23.94461036,19.829,19.813,26.28263349]
[1693801466598,23.94461036,19.829,19.813,1.0]
[1693801466896,23.94461036,19.829,19.811,1.0]
[1693801480726,3.94461036,19.829,19.82,25.52]
[1693801481002,3.94461036,19.833,19.821,1.0]
[1693801481401,3.94461036,19.833,19.82,25.52]
[1693801482608,3.94461036,19.833,19.821,1.0]
[1693801483906,93.3028,19.834,19.822,25.28263349]
[1693801484113,93.3028,19.834,19.823,1.0]
[1693801484995,93.3028,19.834,19.823,56.0]
[1693801485497,25.52,19.84,19.823,56.0]
[1693801485809,119.48455738,19.839,19.823,56.0]
[1693801486511,99.48455738,19.839,19.823,56.0]
[1693801486805,95.815,19.839,19.825,1.0]
[1693801487102,95.815,19.839,19.826,25.28263349]
[1693801487307,95.815,19.839,19.828,1.0]
[1693801504110,2.20526422,19.838,19.828,1.0]
[1693801504322,2.20526422,19.838,19.828,21.0]
[1693801504519,95.815,19.839,19.828,21.0]
[1693801504725,95.815,19.839,19.828,1.0]
[1693801505017,95.815,19.839,19.826,1.0]
[1693801505526,95.815,19.839,19.826,82.531349]
[1693801505825,95.815,19.839,19.827,20.0]
[1693801506024,95.815,19.839,19.829,1.0]
[1693801506422,95.815,19.839,19.829,21.0]
[1693801506605,95.815,19.839,19.831,1.0]
[1693801506811,95.815,19.839,19.83,55.0]
[1693801507711,95.815,19.839,19.831,0.76629235]
[1693801507912,1.85881443,19.849,19.831,58.49177935]
[1693801508229,91.2729,19.849,19.833,1.0]
[1693801508418,91.2729,19.849,19.834,83.00812049]
[1693801508620,91.2729,19.849,19.835,55.0]
[1693801508819,2.99689432,19.854,19.836,45.28263349]
[1693801509228,2.99689432,19.854,19.837,55.0]
[1693801509414,2.99689432,19.854,19.838,20.0]
[1693801509728,2.99689432,19.854,19.839,55.0]
[1693801510125,1.99689432,19.854,19.839,55.0]
[1693801513118,1.99689432,19.854,19.84,25.52]
[1693801513317,65.24580644,19.86,19.84,25.52]
[1693801513318,22.94461036,19.859,19.84,25.52]
[1693801513630,22.94461036,19.859,19.84,50.80263349]
[1693801515634,22.94461036,19.859,19.84,25.52]
[1693801518022,22.94461036,19.859,19.839,55.0]
[1693801521327,22.94461036,19.859,19.84,25.52]
[1693801525438,63.40428777,19.859,19.838,20.0]
[1693801525646,25.52,19.85,19.836,20.0]
[1693801525830,2.94461036,19.849,19.836,20.0]
[1693801526030,2.94461036,19.849,19.834,20.0]
[1693801526327,2.94461036,19.849,19.834,66.483233]
[1693801530348,2.94461036,19.849,19.834,20.0]
[1693801534354,2.94461036,19.849,19.84,25.52]
[1693801534654,116.71371036,19.859,19.84,25.52]
[1693801535456,116.71371036,19.859,19.84,50.80263349]
[1693801535656,116.71371036,19.859,19.841,25.28263349]
[1693801535863,2.94461036,19.859,19.842,20.0]
[1693801536060,2.94461036,19.865,19.843,25.28263349]
[1693801536262,44.08516451,19.865,19.844,20.0]
[1693801536463,2.94461036,19.865,19.845,25.28263349]
[1693801536669,2.94461036,19.865,19.846,20.0]
[1693801538369,17.77382949,19.865,19.846,20.0]
[1693801543765,2.94461036,19.865,19.846,45.28263349]
[1693801543965,2.94461036,19.867,19.846,45.28263349]
[1693801544368,2.94461036,19.867,19.85,25.52]
[1693801561787,57.94461036,19.867,19.846,45.28263349]
[1693801562097,2.94461036,19.859,19.846,45.28263349]
[1693801566191,2.94461036,19.867,19.846,45.28263349]
[1693801566578,2.94461036,19.867,19.847,25.28263349]
[1693801566890,2.94461036,19.867,19.848,20.0]
[1693801572395,57.94461036,19.867,19.848,20.0]
[1693801572599,57.94461036,19.867,19.844,20.0]
[1693801572798,57.94461036,19.867,19.844,45.28263349]
[1693801573098,57.94461036,19.867,19.845,25.28263349]
[1693801573284,57.94461036,19.867,19.846,20.0]
[1693801575002,57.94461036,19.867,19.847,55.0]
[1693801575195,57.94461036,19.867,19.848,20.0]
[1693801575400,57.94461036,19.867,19.849,55.0]
[1693801580400,25.52,19.86,19.849,55.0]
[1693801580607,2.94461036,19.859,19.849,55.0]
[1693801582905,25.52,19.86,19.849,55.0]
[1693801583905,2.94461036,19.859,19.849,55.0]
[1693801587913,25.52,19.86,19.849,55.0]
[1693801590808,2.94461036,19.859,19.849,55.0]
[1693801591308,25.52,19.86,19.849,55.0]
[1693801593514,2.94461036,19.859,19.849,55.0]
[1693801604022,2.94461036,19.859,19.848,20.0]
[1693801604210,2.94461036,19.859,19.849,55.0]
[1693801606615,2.94461036,19.859,19.846,20.0]
[1693801606922,2.94461036,19.859,19.847,55.0]
[1693801607119,2.94461036,19.859,19.848,20.0]
[1693801607915,2.94461036,19.859,19.847,20.0]
[1693801608124,2.94461036,19.859,19.848,55.0]
[1693801613227,2.94461036,19.859,19.842,57.725487]
[1693801613432,22.94461036,19.859,19.838,25.28263349]
[1693801613720,22.94461036,19.859,19.839,101.60414007]
[1693801614431,22.94461036,19.859,19.841,55.0]
[1693801617829,22.94461036,19.859,19.838,83.00812049]
[1693801618838,25.52,19.85,19.838,55.120907]
[1693801619020,25.52,19.85,19.83,25.52]
[1693801619021,2.94461036,19.849,19.832,40.16120906]
[1693801619220,2.94461036,19.849,19.834,20.0]
[1693801619425,2.94461036,19.849,19.834,45.28263349]
[1693801620425,2.94461036,19.849,19.835,55.0]
[1693801620625,25.52,19.85,19.835,55.0]
[1693801620824,25.52,19.85,19.836,20.0]
[1693801621127,2.94461036,19.858,19.837,55.0]
[1693801621327,2.94461036,19.858,19.838,45.28263349]
[1693801621528,2.94461036,19.858,19.839,55.0]
[1693801621830,2.94461036,19.858,19.84,25.28263349]
[1693801622034,2.94461036,19.858,19.841,55.0]
[1693801622328,2.94461036,19.858,19.841,80.28263349]
[1693801625931,44.24637358,19.858,19.841,80.28263349]
[1693801629736,44.24637358,19.858,19.841,55.0]
[1693801632632,25.52,19.85,19.837,25.28263349]
[1693801632934,25.52,19.85,19.838,20.0]
[1693801633137,2.94461036,19.856,19.834,20.0]
[1693801633441,2.94461036,19.856,19.834,45.28263349]
[1693801634141,2.94461036,19.856,19.835,55.0]
[1693801634442,2.94461036,19.856,19.836,20.0]
[1693801634743,2.94461036,19.856,19.837,55.0]
[1693801634931,2.94461036,19.856,19.838,20.0]
[1693801635131,2.94461036,19.856,19.839,55.0]
[1693801638844,25.52,19.85,19.839,55.0]
[1693801642839,2.94461036,19.849,19.838,20.0]
[1693801643046,2.94461036,19.849,19.836,20.0]
[1693801643232,2.94461036,19.849,19.837,55.0]
[1693801643436,2.94461036,19.849,19.838,20.0]
[1693801645541,2.94461036,19.849,19.835,25.28263349]
[1693801645741,22.94461036,19.849,19.829,76.63736938]
[1693801645946,22.94461036,19.849,19.83,25.52]
[1693801646342,22.94461036,19.849,19.83,50.80263349]
[1693801647147,22.94461036,19.849,19.831,55.0]
[1693801652046,2.94461036,19.849,19.831,55.0]
[1693801652241,77.94461036,19.849,19.831,55.0]
[1693801658949,118.66235229,19.849,19.831,55.0]
[1693801659850,25.52,19.84,19.827,46.06222807]
[1693801660050,25.52,19.84,19.828,20.0]
[1693801660657,25.52,19.84,19.825,20.0]
[1693801661358,25.52,19.84,19.825,45.28263349]
[1693801661563,25.52,19.84,19.826,55.0]
[1693801662064,25.52,19.84,19.827,45.28263349]
[1693801662368,25.52,19.84,19.828,55.0]
[1693801672962,15.06804435,19.844,19.828,55.0]
[1693801673163,0.6662067,19.843,19.828,55.0]
[1693801673465,15.06804435,19.844,19.828,55.0]
[1693801676574,15.06804435,19.844,19.828,80.28263349]
[1693801678571,15.06804435,19.844,19.829,25.28263349]
[1693801678769,15.06804435,19.844,19.83,55.0]
[1693801681767,15.06804435,19.844,19.827,20.0]
[1693801681963,15.06804435,19.844,19.825,20.0]
[1693801682173,15.06804435,19.844,19.827,25.28263349]
[1693801682483,15.06804435,19.844,19.828,20.0]
[1693801682670,15.06804435,19.844,19.829,25.28263349]
[1693801682865,15.06804435,19.844,19.83,55.0]
[1693801684667,1.02584591,19.848,19.83,80.52]
[1693801684877,1.02584591,19.848,19.831,25.28263349]
[1693801685076,1.02584591,19.848,19.832,55.0]
[1693801685282,1.02584591,19.848,19.832,80.28263349]
[1693801685579,1.02584591,19.848,19.833,25.28263349]
[1693801685779,21.55834363,19.849,19.834,55.0]
[1693801685980,21.55834363,19.849,19.832,55.0]
[1693801686988,1.55834363,19.849,19.833,20.0]
[1693801687180,119.0451,19.85,19.834,55.0]
[1693801687387,119.0451,19.85,19.835,20.0]
[1693801687591,119.0451,19.85,19.836,55.0]
[1693801687892,119.0451,19.85,19.837,20.0]
[1693801688085,119.0451,19.85,19.838,55.0]
[1693801688489,0.78999958,19.849,19.838,55.0]
[1693801689292,25.52,19.85,19.838,55.0]
[1693801690294,0.7988905,19.849,19.838,55.0]
[1693801693696,25.52,19.85,19.838,55.0]
[1693801724813,0.57910496,19.849,19.838,55.0]
[1693801725207,0.57910496,19.849,19.832,40.04838709]
[1693801725412,0.57910496,19.849,19.833,20.0]
[1693801725614,25.52,19.85,19.833,20.0]
[1693801736928,1.44375527,19.849,19.834,20.0]
[1693801737118,1.44375527,19.849,19.832,20.0]
[1693801742025,1.44375527,19.849,19.833,25.28263349]
[1693801742225,1.44375527,19.849,19.834,20.0]
[1693801742431,25.52,19.85,19.834,20.0]
[1693801742625,0.7139427,19.849,19.834,20.0]
[1693801745034,0.7139427,19.849,19.835,55.0]
[1693801745233,25.52,19.85,19.836,20.0]
[1693801745533,25.52,19.85,19.837,55.0]
[1693801745733,25.52,19.85,19.838,20.0]
[1693801752943,0.63818564,19.849,19.838,20.0]
[1693801754644,25.52,19.85,19.838,20.0]
[1693801755731,25.52,19.85,19.832,20.0]
[1693801755732,1.97346358,19.849,19.832,20.0]
[1693801755932,1.97346358,19.849,19.831,20.0]
[1693801756431,25.52,19.84,19.82,25.52]
[1693801756635,25.52,19.84,19.821,2.0]
[1693801756843,2.05998437,19.839,19.821,2.0]
[1693801757041,2.05998437,19.839,19.821,27.52]
[1693801757243,2.05998437,19.839,19.821,25.52]
[1693801757542,2.05998437,19.839,19.822,2.0]
[1693801757931,2.05998437,19.839,19.822,77.0]
[1693801759649,25.52,19.84,19.822,77.0]
[1693801759836,2.05998437,19.839,19.822,77.0]